Cogmind - Beta 13 @@@ ROGUE MODE // 2024.04.07 @ 19:23:03 Player: icculus Result: Destroyed by D-53 Grenadier with Mini Grenade Launcher Performance ------------- Evolutions (1) 500 Regions Visited (3) 600 Robots Destroyed (23) 115 Value Destroyed (674) 674 Prototype IDs (2) 40 Alien Tech Used (0) 0 Bonus (0) 0 TOTAL SCORE: 1929 Bonus ------- None Cogmind --------- Core Integrity 0/400 Matter 298/300 Energy 100/100 System Corruption 19% Temperature Cool (0) Movement Core (200) Ox3 Location -9/Mines Parts ------- > --- POWER (1) -------- (None) > --- PROPULSION (4) --- (None) > --- UTILITY (2) ------ Medium Storage Unit > --- WEAPON (2) ------- (None) > --- INVENTORY (10) --- Flight Unit Small Battery (100) Small Matter Pod (50) Medium Matter Pod (6) Seismic Detector Peak State ------------ > --- POWER ------------ Ion Engine > --- PROPULSION ------- Light Treads Light Treads Light Treads Light Treads > --- UTILITY ---------- Medium Storage Unit Targeting Computer > --- WEAPON ----------- Assault Rifle Heavy Assault Rifle > --- INVENTORY -------- Light Ion Engine Aluminum Leg Flight Unit Small Battery Small Matter Pod Seismic Detector Beam Cannon Grenade Launcher Plasma Cutter [Rating: 11] Favorites ----------- Power Ion Engine Engine Ion Engine Power Core Light Nuclear Core Propulsion Aluminum Leg Treads Light Treads Leg Aluminum Leg Utility Targeting Computer Device Seismic Detector Storage Medium Storage Unit Processor Targeting Computer Weapon Light Assault Rifle Energy Gun Beam Rifle Energy Cannon Beam Cannon Ballistic Gun Light Assault Rifle Launcher Grenade Launcher Special Weapon Plasma Cutter Build | -11 -10 -9 -9 ------- Run | Yrd Mat Mat Min Slots Evolved 2 | . . 2 . Power . | . . . . Propulsion 2 | . . 2 . Utility . | . . . . Weapon . | . . . . Parts Attached 39 | 8 17 10 4 Power 8 | 3 3 1 1 Engine 7 | 3 2 1 1 Core 1 | . 1 . . Reactor . | . . . . Propulsion 14 | 2 4 8 . Treads 5 | . 3 2 . Leg 9 | 2 1 6 . Wheel . | . . . . Hover . | . . . . Flight . | . . . . Utility 7 | 1 6 . . Device 4 | 1 3 . . Storage 2 | . 2 . . Processor 1 | . 1 . . Hackware . | . . . . Protection . | . . . . Artifact . | . . . . Weapon 10 | 2 4 1 3 Energy Gun 1 | . . . 1 Energy Cannon 1 | . . . 1 Ballistic Gun 6 | 2 3 1 . Ballistic Cannon . | . . . . Launcher 1 | . 1 . . Special Weapon 1 | . . . 1 Impact Weapon . | . . . . Slashing Weapon . | . . . . Piercing Weapon . | . . . . Special Melee Weapon . | . . . . Unidentified Prototypes . | . . . . Parts Lost 16 | . 4 . 12 Power 4 | . 2 . 2 Propulsion 6 | . 2 . 4 Utility 1 | . . . 1 Weapon 5 | . . . 5 Highest Loss Streak 12 | . 2 . 12 To Critical Strikes . | . . . . Average Slot Usage (%) 88 | . 89 94 60 Engine 9 | . 9 11 3 Core 2 | . 4 . . Treads 11 | . 4 27 . Leg 14 | . 15 10 22 Device 11 | . 18 . . Storage 5 | . 2 11 11 Processor 7 | . 6 11 6 Ballistic Gun 24 | . 27 22 12 Naked Turns . | . . . . Heaviest Build 20 | 8 18 20 20 Greatest Support 80 | 20 40 80 40 Greatest Overweight (x) 3 | . 1 . 3 Average Overweight (x) . | . . . . Largest Inventory Capacity 10 | 5 10 10 10 Average Capacity 7 | 5 5 10 10 Most Carried 10 | 4 10 10 9 Average Carried 6 | 1 5 9 7 Final Capacity 10 | 5 10 10 10 Final Carried 10 | 4 10 9 5 Class Distribution -------------------- 86% | Mutant 13% | Scavenger-Mutant Dominant Class ---------------- Mutant | -10/Materials Mutant | -9/Materials Mutant | -9/Mines Resources | -11 -10 -9 -9 ----------- Run | Yrd Mat Mat Min Matter Collected 920 | 286 238 284 112 Remotely . | . . . . Salvage Created 946 | 66 370 375 135 Parts 48 | 6 24 18 . Haulers Intercepted . | . . . . Recyclers Shooed 2 | . 2 . . Parts Field Recycled . | . . . . Retrieved Matter . | . . . . Parts Self-Destructed . | . . . . Prevented . | . . . . Kills | -11 -10 -9 -9 ------- Run | Yrd Mat Mat Min Combat Hostiles Destroyed 26 | 1 8 8 9 Guns 24 | 1 7 8 8 Cannons 1 | . . . 1 AOE 1 | . 1 . . Classes Destroyed 8 | 2 3 2 1 Worker 1 | . . 1 . Tunneler 1 | 1 . . . Recycler 1 | . 1 . . Watcher 3 | . 2 1 . Swarmer 2 | . 2 . . Grunt 12 | 1 6 5 . Sentry 3 | . . 3 . Assembled 9 | . . . 9 Best Kill Streak 8 | 2 3 4 8 Combat Bots Only 8 | 1 3 3 8 Max Kills in Single Turn 2 | 1 1 1 2 Gunslinging 1 | . . . 1 Exploded 1 | . 1 . . Melee . | . . . . Uniques/NPCs Destroyed . | . . . . Combat | -11 -10 -9 -9 -------- Run | Yrd Mat Mat Min Hostile Shots Fired 150 | 1 53 36 60 Missed 34 | . 21 5 8 Damage Taken 2067 | 12 494 419 1142 Core 509 | . 102 39 368 Absorbed by Shields . | . . . . Regen/Repaired (Parts) 17 | . 17 . . Core Remaining (%) 79 | 100 59 . . Volleys Fired 109 | 3 44 25 37 Largest 2 | 2 2 2 2 Hottest 79 | 40 50 43 79 Shots Fired 202 | 6 88 50 58 Gun 189 | 6 86 50 47 Cannon 10 | . . . 10 Launcher 2 | . 2 . . Special 1 | . . . 1 Kinetic 182 | 6 86 50 40 Thermal 18 | . . . 18 Explosive 2 | . 2 . . Electromagnetic . | . . . . Robot Hit Streak 13 | 4 13 10 8 Robot Miss Streak 6 | . 4 2 6 Penetration Max . | . . . . Secondary Targets 3 | . 1 1 1 Max Gunslinging Chain 1 | . 1 1 1 Shots Hit Robots 129 | 4 52 37 36 Core Hits 64 | 4 25 17 18 Critical Kills 1 | . 1 . . Critical Parts Destroyed 2 | . 1 1 . Critical Strikes 3 | . 2 1 . Destroy 3 | . 2 1 . Melee Attacks . | . . . . Impact . | . . . . Slashing . | . . . . Piercing . | . . . . Sneak Attacks . | . . . . Combat Hostiles . | . . . . Follow-up Attacks . | . . . . Damage Inflicted 1620 | 37 633 454 496 Guns 1348 | 37 442 454 415 Cannons 70 | . . . 70 Explosions 190 | . 190 . . Melee . | . . . . Ramming 1 | . 1 . . Kinetic 1319 | 37 442 454 386 Thermal 110 | . . . 110 Explosive 190 | . 190 . . Electromagnetic . | . . . . Impact . | . . . . Slashing . | . . . . Piercing . | . . . . Highest Corruption 19 | . . . 19 Average Corruption 17 | . . . 17 Corruption Purged . | . . . . Corruption Blocked . | . . . . Effects 3 | . . . 3 Message Errors 2 | . . . 2 Matter Fused 1 | . . . 1 Overload Shots . | . . . . Overflow Damage . | . . . . Projectiles . | . . . . Explosions . | . . . . Melee . | . . . . Knockbacks . | . . . . Impact . | . . . . Kinetic . | . . . . Secondary . | . . . . Self-Inflicted Damage 24 | . 24 . . Shots 2 | . 2 . . Rammed . | . . . . Targets Rammed 2 | . 2 . . Kicked 2 | . 2 . . Crushed . | . . . . Highest Temperature 28 | . 17 24 28 Average Temperature 9 | . 8 11 9 Received Heat Transfer 781 | 6 270 225 280 Siege Activations . | . . . . Robots Corrupted . | . . . . Combat Hostiles . | . . . . Parts Fried . | . . . . Impact Corruptions . | . . . . Robots Melted . | . . . . Combat Hostiles . | . . . . Parts Melted . | . . . . Heat Transferred 259 | . . . 259 Parts Sabotaged . | . . . . Parts Stolen . | . . . . Parts Stripped . | . . . . Power Chain Reactions . | . . . . Alert | -11 -10 -9 -9 ------- Run | Yrd Mat Mat Min Peak Influence 294 | 25 204 294 36 Initial 36 | . 16 1 36 Average 66 | 12 66 100 8 Maximum Alert Level 1 | . 1 1 . Low Security (%) 94 | 100 98 84 100 Level 1 5 | . 1 15 . Level 2 . | . . . . Level 3 . | . . . . Level 4 . | . . . . Level 5 . | . . . . High Security . | . . . . Max Security . | . . . . Squads Dispatched 4 | . 2 2 . Investigation 2 | . 1 1 . Extermination . | . . . . Reinforcement 2 | . 1 1 . Assault . | . . . . Garrison . | . . . . Intercept . | . . . . Searches Triggered . | . . . . Construction Impeded . | . . . . Haulers Reinforced . | . . . . Active Scanning Responses . | . . . . Cargo Convoy Interrupts . | . . . . Stealth | -11 -10 -9 -9 --------- Run | Yrd Mat Mat Min Distress Signals 2 | . 2 . . Communications Jammed . | . . . . Distress Signals . | . . . . Times Spotted 38 | 1 15 8 14 Peak Tracking Total 8 | 1 5 2 8 Tactical Retreats 1 | . . . 1 Traps | -11 -10 -9 -9 ------- Run | Yrd Mat Mat Min Traps Triggered 2 | . 2 . . Indirectly . | . . . . Trap Hack Attempts . | . . . . Triggered . | . . . . Disarmed . | . . . . Reprogrammed . | . . . . Reused . | . . . . Traps Extracted . | . . . . Installed . | . . . . Triggered . | . . . . Machines | -11 -10 -9 -9 ---------- Run | Yrd Mat Mat Min Machines Disabled 1 | . . 1 . Max in Single Turn 1 | . . 1 . Machines Repaired . | . . . . Machines Dismantled . | . . . . Machines Sabotaged . | . . . . Overloaded Fab Kills . | . . . . Hacking | -11 -10 -9 -9 --------- Run | Yrd Mat Mat Min Machines Accessed 9 | . 7 2 . Terminals 7 | . 5 2 . Fabricators . | . . . . Repair Stations 1 | . 1 . . Recycling Units 1 | . 1 . . Scanalyzers . | . . . . Garrison Access . | . . . . Total Hacks 31 | . 24 7 . Successful 19 | . 15 4 . Failed 12 | . 9 3 . Catastrophic 1 | . . 1 . Database Lockouts . | . . . . Manual . | . . . . Terminals 23 | . 16 7 . Fabricators . | . . . . Repair Stations 3 | . 3 . . Recycling Units 5 | . 5 . . Scanalyzers . | . . . . Garrison Access . | . . . . Terminal Hacks 12 | . 8 4 . Record 7 | . 3 4 . Prototype ID Bank 1 | . 1 . . Locate Traps 1 | . 1 . . Dispatch Records 2 | . 2 . . Maintenance Status 1 | . 1 . . Fabricator Hacks . | . . . . Repair Station Hacks 2 | . 2 . . Scan Component 1 | . 1 . . Repair 1 | . 1 . . Recycling Unit Hacks 5 | . 5 . . Recycle Component 1 | . 1 . . Process 2 | . 2 . . Report Inventory 1 | . 1 . . Retrieve Matter 1 | . 1 . . Scanalyzer . | . . . . Garrison Access Hacks . | . . . . Unauthorized Hacks . | . . . . Terminals . | . . . . Fabricators . | . . . . Repair Stations . | . . . . Recycling Units . | . . . . Scanalyzers . | . . . . Garrison Access . | . . . . Data Cores Recovered . | . . . . Used . | . . . . Hacking Detections 7 | . 5 2 . Full Trace Events 2 | . 1 1 . Feedback Events . | . . . . Feedback Blocked . | . . . . Robot Schematics Acquired . | . . . . Robots Built . | . . . . Authchips . | . . . . Time . | . . . . Total Robot Build Rating . | . . . . Part Schematics Acquired . | . . . . Parts Built . | . . . . Authchips . | . . . . Time . | . . . . Total Part Build Rating . | . . . . Parts Repaired 1 | . 1 . . Time 26 | . 26 . . Parts Recycled 1 | . 1 . . Recycled Matter 48 | . 48 . . Retrieved Matter 48 | . 48 . . Retrieved Components . | . . . . Parts Scanalyzed . | . . . . Part Schematics Acquired . | . . . . Parts Damaged . | . . . . Bothacking | -11 -10 -9 -9 ------------ Run | Yrd Mat Mat Min Used RIF Installer . | . . . . Robots Hacked . | . . . . Non-combat . | . . . . Combat . | . . . . Robot Hacks Applied . | . . . . Relay Couplers Released . | . . . . Fabnet Peak Effective % . | . . . . Robots Rewired . | . . . . Allies Hacked . | . . . . Hacks Repelled . | . . . . Allies | -11 -10 -9 -9 -------- Run | Yrd Mat Mat Min Total Allies . | . . . . Largest Group . | . . . . Highest-Rated Group . | . . . . Highest-Rated Ally . | . . . . Total Orders . | . . . . Ally Attacks . | . . . . Total Damage . | . . . . Kills . | . . . . Allies Corrupted . | . . . . Allies Melted . | . . . . Intel | -11 -10 -9 -9 ------- Run | Yrd Mat Mat Min Robot Analysis Total . | . . . . Derelict Logs Recovered 1 | . . . 1 Drone Launches . | . . . . Drone Recoveries . | . . . . Exploration | -11 -10 -9 -9 ------------- Run | Yrd Mat Mat Min Turns Passed 1618 | 146 878 455 139 Spaces Moved 936 | 112 558 240 26 Core 25 | 20 . . 5 Treads 257 | . 82 175 . Legs 654 | 92 476 65 21 Wheels . | . . . . Hover . | . . . . Flight . | . . . . Fastest Speed 50 | 50 120 120 120 Average Speed 130 | 107 126 149 151 Slowest Speed 200 | 120 190 160 200 Overloaded Moves . | . . . . Propulsion Burnouts . | . . . . Robots Hopped . | . . . . Cave-ins Triggered . | . . . . Exploration Rate (%) 30 | 6 80 22 12 Regions Visited 3 Branch Regions 1 Pre-discovered Areas 1 | . . . 1 Known Exits Taken . | . . . . Unknown Exits Taken 3 | 1 1 1 . Scrap Searched . | . . . . Spaces Dug . | . . . . Terrain Destroyed 9 | . 9 . . Melee . | . . . . Projectile . | . . . . AOE 9 | . 9 . . Terrain Rammed . | . . . . Walls Destroyed . | . . . . Machines Disabled . | . . . . Actions | -11 -10 -9 -9 --------- Run | Yrd Mat Mat Min Total 1150 | 133 659 291 67 Wait 13 | . 12 1 . Move 933 | 111 557 239 26 Hop . | . . . . Pick Up 32 | 10 16 6 . Fast Attach 8 | . 7 1 . Attach 17 | 7 4 2 4 Detach 2 | 1 1 . . Swap 14 | 1 6 7 . Drop 20 | . 10 10 . Fire 109 | 3 44 25 37 Melee . | . . . . Ram . | . . . . Kick 2 | . 2 . . Crush . | . . . . Escape Stasis . | . . . . Rewire . | . . . . Trap . | . . . . Miscellaneous . | . . . . Route ------- -11/Scrapyard -10/Materials (discovered 4 exits: *Mat x3 / [*Min]) -9/Materials -9/Mines History --------- Turn | Location | Event 2 | -11/Scrapyard | Met Revision 17 62 | -11/Scrapyard | Discovered new exit (range 8) 147 | -11/Scrapyard | Entered Materials 315 | -10/Materials | Build established: Mutant 454 | -10/Materials | Discovered new exit (range 15) 644 | -10/Materials | Discovered new exit (range 15) 749 | -10/Materials | Repaired Seismic Detector 929 | -10/Materials | Discovered new exit (range 4) 977 | -10/Materials | Discovered new exit (range 13) 1025 | -10/Materials | Entered another Materials area 1025 | -9/Materials | Evolved 2 slots: Propulsion x2 1453 | -9/Materials | Discovered new exit (range 12) 1480 | -9/Materials | Entered Mines 1481 | -9/Mines | Assembled infested the area 1500 | -9/Mines | Met a Derelict bent on vengeance 1513 | -9/Mines | Learned location of Zion (-6) 1563 | -9/Mines | System corruption reached 10% 1578 | -9/Mines | Destroyed 8 combat bots 1606 | -9/Mines | Core integrity fell below 50% 1616 | -9/Mines | Core integrity fell below 20% 1619 | -9/Mines | Destroyed by D-53 Grenadier with Mini Grenade Launcher Last Messages --------------- System corrupted by crushing effect (+4). K-01 Serf collects debris. Knocked back. K-01 Serf collects debris. as-80139 sneak attacks. K-01 Serf system corrupted by crushing effect. K-01 Serf system terminally corrupted. Knocked back. Beam Cannon destroyed. System corrupted by crushing effect (+2). as-80139 destroyed. System corrupted: Matter fused (-8). Acquired 11 matter. Plasma Cutter destroyed. D-53 Grenadier destroyed. Aluminum Leg destroyed. Seismic Survey Station disabled. U-05 Engineer builds a Wall. Seismic Survey Station disabled. VCC=Q8XTT09QXWH&4W3AM96BVTJAXHD/ZJYGCFE Map ----- +----------------------------------------------------+ | ?????????????????????????????????????????????? | | ?????????????????????????????????????????????? | | ?????????????????????????????????????????????? | | ?????????????????????????????????????????????? | | ?????????????????????????????????????????????? | | ?????????????????????????????????????????#???? | | ???????????????????????????????????????? ???? | | ??????????????????????????????????????? #??? | | ?????????????????????????????????????? #??? | | ????????????????????????????????????? #??? | | ?????????????????????????????####??? #???? | | ????????????????????????????## ### #???? | | ????????????????????????????# #????? | | ????????????????????????????# #### #?????? | | ?????????????????#######????## % #???????????? | | ????????????????# #???## ##??????????? | | ????????????????# """ ##### #??????????? | | ????????????????# """ # #??????????? | | ????????????????# """ ##??????????? | | ????????????????# d #???????????? | | ????????????????# #???????????? | | ????????????????# % #???????????? | | ????????????????# % #???????????? | | ????????????????# * #???????????? | | ????????????????# #???????????? | | ????????????????# @ # #???????????? | | ????????????????# " # ##???????????? | | ????????????????# # # #????????????? | | ????????????????########### #????????????? | | ??????????????????????????? ##????????????? | | ??????????????????????????? ##?????????????? | | ???????????????????????????# #??????????????? | | ???????????????????????????# #??????????????? | | ???????????????????????????# #??????????????? | | ???????????????????????????# #??????????????? | | ???????????????????????????? #??????????????? | | ???????????????????????????? ???????????????? | | ?????????????????????????????????????????????? | | ?????????????????????????????????????????????? | | ?????????????????????????????????????????????? | | ?????????????????????????????????????????????? | | ?????????????????????????????????????????????? | | ?????????????????????????????????????????????? | | ?????????????????????????????????????????????? | | ?????????????????????????????????????????????? | | ?????????????????????????????????????????????? | | ?????????????????????????????????????????????? | | ?????????????????????????????????????????????? | | ?????????????????????????????????????????????? | | ?????????????????????????????????????????????? | +----------------------------------------------------+ Best States ------------- Heat Dissipation 35 Energy Generation 14 Energy Capacity 250 Matter Stores 300 Matter Capacity 300 Sight Range 16 Terrain Scan Density 10 Evasion (%) 55 Targeting Accuracy 5 Recoil Reduction 4 Item Schematics ----------------- None Robot Schematics ------------------ None Fabricated ------------ Nothing Alien Tech Used ----------------- None Achievements -------------- System Compromised Challenges ------------ None Game ------ Seed AuthchipLauncherRay Manual? 0 Play Time 00:52:32 Cumulative 5.8 hours Start 2024.04.07 @ 14:43:27 End 2024.04.07 @ 19:23:03 Sessions 4 Manual Loads 0 Difficulty Rogue Special Mode None Game No. 3 Rogue 3 Adventurer 0 Explorer 0 Win Type - Total 0 Types 0/0/0/0/0/0/0/0/0 Lore% 4 Gallery% 5 Achievement% 6 Wizard Run 0 Options --------- Layout 0 ASCII 0 Keyboard 0 Movement Mouse Keybinds 0 Fullscreen 1 Font 24/Swanston Map View 76x50 Zoom Use 0% Tactical HUD 0 Map Filters NONE Filters NONE Steam 1 RUN: f5c05346-d1a1-48ea-ab1a-3937558f0fbe